bitfinex-derivatives/quotes_BTCF0:USTF0_20241221
["timestamp","ask_amount","ask_price","bid_price","bid_amount"]
[1734798626501,0.37101584,97639.0,97620.0,0.3608]
[1734798626696,0.051234,97625.0,97620.0,0.3608]
[1734798627198,0.009,97624.0,97620.0,0.3618]
[1734798628003,0.060234,97625.0,97620.0,0.3618]
[1734798628405,0.051234,97625.0,97620.0,0.3608]
[1734798628703,0.051234,97625.0,97620.0,0.3618]
[1734798628704,0.009,97624.0,97620.0,0.3618]
[1734798629006,0.009,97624.0,97623.0,0.412035]
[1734798630105,0.009,97625.0,97623.0,0.412035]
[1734798630798,0.34444,97652.0,97629.0,0.051232]
[1734798631004,0.051226,97640.0,97629.0,0.051232]
[1734798631201,0.051226,97640.0,97639.0,0.3608]
[1734798631497,0.009,97625.0,97623.0,0.3618]
[1734798631707,0.3608,97644.0,97623.0,0.3618]
[1734798631892,0.051234,97624.0,97623.0,0.001]
[1734798632097,1.171234,97624.0,97623.0,0.001]
[1734798633604,0.051239,97615.0,97614.0,0.3608]
[1734798635596,1.12,97632.0,97614.0,0.3608]
[1734798635800,0.051239,97616.0,97614.0,0.3608]
[1734798636607,0.051239,97616.0,97614.0,0.3618]
[1734798637295,0.051239,97616.0,97614.0,0.3608]
[1734798637496,0.051239,97616.0,97614.0,0.3618]
[1734798637701,0.051239,97616.0,97614.0,0.001]
[1734798638109,0.3608,97615.0,97614.0,0.001]
[1734798638799,0.3608,97615.0,97591.0,0.3608]
[1734798638800,0.6608,97615.0,97591.0,0.3608]
[1734798639001,0.051251,97592.0,97591.0,0.3608]
[1734798640292,0.051251,97592.0,97591.0,0.3648]
[1734798640607,0.051251,97592.0,97591.0,0.3738]
[1734798641005,0.051251,97592.0,97591.0,0.009]
[1734798641211,0.051255,97585.0,97584.0,0.00153705]
[1734798641600,0.05126,97575.0,97574.0,8.861e-05]
[1734798641799,0.001,97592.0,97574.0,8.861e-05]
[1734798641800,0.051256,97584.0,97574.0,8.861e-05]
[1734798642006,0.051256,97584.0,97583.0,0.3608]
[1734798644508,0.3608,97584.0,97574.0,8.861e-05]
[1734798644708,0.05126,97575.0,97574.0,8.861e-05]
[1734798645412,0.051258,97579.0,97574.0,8.861e-05]
[1734798645610,0.051258,97579.0,97578.0,0.3608]
[1734798646521,0.051254,97587.0,97578.0,0.3608]
[1734798646706,0.051256,97584.0,97578.0,0.3608]
[1734798646905,0.051256,97584.0,97578.0,0.3618]
[1734798647705,0.051256,97584.0,97578.0,0.3628]
[1734798647906,0.051256,97584.0,97580.0,0.051257]
[1734798648310,0.0080568,97593.0,97578.0,0.3628]
[1734798648514,0.051251,97592.0,97587.0,0.3608]
[1734798649418,0.051253,97589.0,97587.0,0.3608]
[1734798649608,0.051253,97589.0,97587.0,0.3628]
[1734798650322,0.051252,97591.0,97587.0,0.3658]
[1734798651816,0.051252,97591.0,97588.0,0.051253]
[1734798652022,0.0082782,97599.0,97590.0,0.051252]
[1734798652314,0.0644,97613.0,97596.0,0.051249]
[1734798652522,0.0644,97613.0,97595.0,0.3608]
[1734798652713,0.15116604,97610.0,97595.0,0.3608]
[1734798653016,0.15116604,97610.0,97587.0,0.3658]
[1734798653017,0.051253,97588.0,97587.0,0.3658]
[1734798653217,0.051253,97588.0,97587.0,0.003]
[1734798654126,0.412049,97596.0,97595.0,0.004]
[1734798655121,0.412049,97596.0,97595.0,0.006]
[1734798655624,0.42053202,97596.0,97595.0,0.006]
[1734798655814,0.42053202,97596.0,97595.0,0.002]
[1734798656319,0.051256,97584.0,97582.0,0.3608]
[1734798657814,0.051256,97584.0,97582.0,0.3628]
[1734798658011,0.051256,97584.0,97582.0,0.003]
[1734798660513,0.051256,97584.0,97583.0,0.3608]
[1734798661907,0.051256,97584.0,97583.0,0.3618]
[1734798662625,0.05984946,97584.0,97583.0,0.003]
[1734798663124,0.05984946,97584.0,97583.0,0.002]
[1734798663711,0.05984946,97584.0,97583.0,0.001]
[1734798664113,0.05126,97575.0,97574.0,8.861e-05]
[1734798665514,0.05126,97575.0,97574.0,0.002]
[1734798665729,0.05126,97575.0,97569.0,0.24463875]
[1734798666027,0.051266,97564.0,97563.0,0.30492879]
[1734798666326,0.06133367,97564.0,97563.0,0.30492879]
[1734798666531,0.06142039,97564.0,97563.0,0.30492879]
[1734798666825,0.051273,97550.0,97549.0,0.30492879]
[1734798667009,0.06134067,97550.0,97549.0,0.30492879]
[1734798668023,0.06134067,97550.0,97549.0,0.31092879]
[1734798668226,0.06133644,97550.0,97549.0,0.006]
[1734798668720,0.06133644,97550.0,97545.0,0.3608]
[1734798668918,0.051271,97555.0,97545.0,0.3608]
[1734798669113,0.051271,97555.0,97554.0,0.3608]
[1734798670026,8.672e-05,97564.0,97554.0,0.3608]
[1734798670223,8.672e-05,97564.0,97563.0,0.412066]
[1734798671222,8.672e-05,97564.0,97563.0,0.3608]
[1734798671515,8.672e-05,97564.0,97556.0,0.41909879]
[1734798671516,0.051268,97560.0,97557.0,0.051269]
[1734798672251,0.051268,97560.0,97559.0,0.30492879]
[1734798672819,8.672e-05,97564.0,97561.0,0.051267]
[1734798673027,0.051267,97563.0,97562.0,0.051267]
[1734798673429,0.051268,97560.0,97559.0,0.30892879]
[1734798673817,0.051268,97560.0,97559.0,0.004]
[1734798674822,0.051268,97560.0,97559.0,0.006]
[1734798675226,0.051268,97560.0,97559.0,0.055268]
[1734798675425,0.00892944,97564.0,97562.0,0.051266]
[1734798675620,8.672e-05,97564.0,97563.0,0.0652]
[1734798675821,0.0644,97589.0,97563.0,0.0652]
[1734798676016,0.051254,97586.0,97585.0,0.3608]
[1734798676629,0.12406594,97595.0,97585.0,0.3608]
[1734798676830,0.05125,97594.0,97593.0,0.3608]
[1734798678226,0.051257,97581.0,97580.0,0.30492879]
[1734798679133,0.051257,97581.0,97574.0,0.36216]
[1734798679332,0.051257,97581.0,97576.0,0.051259]
[1734798679631,0.051258,97580.0,97576.0,0.051259]
[1734798680032,0.36949854,97593.0,97576.0,0.051259]
[1734798680827,0.36949854,97593.0,97580.0,0.002]
[1734798681029,0.051257,97581.0,97580.0,0.002]
[1734798681733,0.051259,97577.0,97576.0,0.006]
[1734798682236,0.051259,97577.0,97576.0,0.002]
[1734798682530,0.05126,97575.0,97574.0,0.3608]
[1734798683835,0.05126,97576.0,97575.0,0.05126]
[1734798684931,0.05126,97576.0,97574.0,0.3618]
[1734798685122,0.05126,97576.0,97575.0,0.001]
[1734798685528,0.05126,97576.0,97575.0,0.002]
[1734798685930,0.051253,97589.0,97575.0,0.002]
[1734798686135,0.051253,97589.0,97587.0,0.051253]
[1734798686435,0.051253,97589.0,97585.0,0.3608]
[1734798686436,0.00852698,97593.0,97591.0,0.051251]
[1734798686628,0.051249,97596.0,97592.0,0.117451]
[1734798686829,0.051249,97596.0,97593.0,0.05125]
[1734798687935,0.05278784,97595.0,97593.0,0.05125]
[1734798688135,0.051251,97593.0,97592.0,0.0662]
[1734798689428,0.052251,97593.0,97592.0,0.0662]
[1734798690335,0.002,97593.0,97592.0,0.0662]
[1734798691832,0.051239,97616.0,97609.0,0.051242]
[1734798692037,0.051239,97616.0,97614.0,0.3608]
[1734798694143,0.002,97615.0,97614.0,0.3608]
[1734798694543,0.002,97615.0,97614.0,0.3618]
[1734798695444,0.052239,97616.0,97614.0,0.3628]
[1734798697246,0.002,97615.0,97614.0,0.3618]
[1734798697841,0.053239,97616.0,97614.0,0.3618]
[1734798698742,0.002,97615.0,97614.0,0.3618]
[1734798700748,0.053239,97616.0,97614.0,0.3608]
[1734798700938,0.053239,97616.0,97614.0,0.3618]
[1734798701535,0.002,97615.0,97614.0,0.3618]
[1734798702344,0.002,97615.0,97614.0,0.4268]
[1734798702754,0.002,97615.0,97614.0,0.3618]
[1734798703047,0.051239,97616.0,97614.0,0.3618]
[1734798703251,0.053239,97616.0,97614.0,0.3618]
[1734798703841,0.051239,97616.0,97614.0,0.3618]
[1734798704146,0.002,97615.0,97614.0,0.001]
[1734798704347,0.05124,97614.0,97606.0,0.051244]
[1734798704548,0.051242,97610.0,97606.0,0.051244]
[1734798704748,0.0662,97615.0,97604.0,0.3608]
[1734798704948,0.051244,97606.0,97604.0,0.3608]
[1734798705243,0.05125,97594.0,97593.0,0.30492879]
[1734798705651,0.05125,97594.0,97592.0,0.30492879]
[1734798706147,0.0651,97593.0,97592.0,0.30492879]
[1734798706563,0.1885,97593.0,97592.0,0.20362879]
[1734798706742,0.051254,97586.0,97585.0,0.36309139]
[1734798706942,0.412054,97586.0,97585.0,0.36309139]
[1734798707146,1.532054,97586.0,97585.0,0.36309139]
[1734798707348,1.532054,97586.0,97585.0,7.26e-05]
[1734798707659,0.051258,97578.0,97566.0,0.0624]
[1734798708348,0.051264,97567.0,97566.0,0.0624]
[1734798708539,0.05136382,97567.0,97566.0,0.0624]
[1734798709252,0.051267,97562.0,97561.0,0.3608]
[1734798709462,9.982e-05,97567.0,97549.0,0.3608]
[1734798709463,0.05127,97556.0,97549.0,0.3608]
[1734798710748,0.05127,97556.0,97555.0,0.00653752]
[1734798711247,0.05127,97556.0,97555.0,0.01553752]
[1734798712353,0.0606893,97556.0,97555.0,0.01553752]
[1734798715249,0.051266,97564.0,97557.0,0.051269]
[1734798715457,0.051266,97564.0,97563.0,0.3608]
[1734798717355,0.051269,97558.0,97557.0,0.005]
[1734798717652,0.00944301,97565.0,97557.0,0.005]
[1734798717954,0.051265,97566.0,97564.0,0.3608]
[1734798718154,0.051265,97566.0,97565.0,0.1296]
[1734798718355,0.00934068,97566.0,97565.0,0.1296]
[1734798718554,9.982e-05,97567.0,97565.0,0.1296]
[1734798718854,9.982e-05,97567.0,97565.0,0.180865]
[1734798719649,9.982e-05,97567.0,97565.0,0.183865]
[1734798719953,9.982e-05,97567.0,97566.0,0.0627]
[1734798720652,0.09157582,97599.0,97566.0,0.3627]
[1734798720850,0.051249,97596.0,97594.0,0.3608]
[1734798721045,0.051249,97596.0,97595.0,0.0631]
[1734798722958,0.002,97596.0,97595.0,0.0631]
[1734798723559,0.002,97596.0,97595.0,0.0641]
[1734798723862,0.002,97596.0,97595.0,0.0631]
[1734798728063,0.0154,97617.0,97595.0,0.0631]
[1734798728268,0.05124,97613.0,97612.0,0.3608]
[1734798728854,0.00912066,97617.0,97612.0,0.3608]
[1734798729159,0.0154,97629.0,97614.0,0.3608]
[1734798729368,0.051232,97628.0,97626.0,0.3608]
[1734798729750,0.051237,97619.0,97614.0,0.413399]
[1734798729950,0.051237,97619.0,97614.0,0.412039]
[1734798730165,0.002,97617.0,97614.0,0.412039]
[1734798730366,0.051239,97616.0,97614.0,0.412039]
[1734798730556,0.051239,97616.0,97614.0,0.3608]
[1734798730864,0.051245,97603.0,97602.0,0.18263447]
[1734798731758,1.171245,97603.0,97602.0,0.18263447]
[1734798732155,0.051245,97603.0,97602.0,0.18263447]
[1734798732469,0.051247,97600.0,97596.0,0.051249]
[1734798732763,0.051247,97600.0,97597.0,0.051248]
[1734798732961,0.051248,97599.0,97597.0,0.051248]
[1734798733150,0.3608,97607.0,97593.0,0.3608]
[1734798733556,0.05125,97594.0,97593.0,0.3608]
[1734798733860,0.051254,97587.0,97585.0,0.36233707]
[1734798734171,0.051254,97587.0,97585.0,0.3608]
[1734798734558,0.051257,97580.0,97579.0,0.18263447]
[1734798735259,0.051258,97580.0,97573.0,0.051261]
[1734798735468,0.3608,97586.0,97573.0,0.051261]
[1734798735671,0.05126,97575.0,97572.0,0.18263447]
[1734798735860,0.051261,97574.0,97572.0,0.18263447]
[1734798736578,0.051261,97574.0,97573.0,0.001]
[1734798737967,0.051261,97574.0,97572.0,0.005]
[1734798738767,0.051261,97574.0,97573.0,0.002]
[1734798738962,0.06066194,97574.0,97573.0,0.002]
[1734798739469,0.06066194,97574.0,97572.0,0.003]
[1734798739671,0.06066194,97574.0,97573.0,0.002]
[1734798741672,0.06066194,97574.0,97573.0,0.004]
[1734798750471,0.00940094,97574.0,97573.0,0.004]
[1734798750774,0.09157582,97583.0,97573.0,0.004]
[1734798750974,0.051259,97578.0,97574.0,0.0725]
[1734798751173,0.10697582,97585.0,97574.0,0.0725]
[1734798751372,0.05126,97575.0,97574.0,0.0725]
[1734798752181,0.05126,97575.0,97574.0,0.0745]
[1734798752768,0.05126,97575.0,97574.0,0.0755]
[1734798753170,0.06070814,97575.0,97574.0,0.003]
[1734798755278,0.051257,97582.0,97574.0,0.003]
[1734798755586,0.051257,97582.0,97581.0,0.3608]
[1734798756679,0.05126,97576.0,97574.0,0.001]
[1734798756881,0.05126,97576.0,97574.0,0.003]
[1734798757179,0.051257,97582.0,97578.0,0.051258]
[1734798757976,0.051258,97580.0,97578.0,0.051258]
[1734798758172,0.051254,97586.0,97575.0,0.05126]
[1734798758474,0.051255,97585.0,97583.0,0.3608]
[1734798758672,0.051255,97585.0,97583.0,0.4363]
[1734798758874,0.3608,97588.0,97578.0,0.002]
[1734798759104,0.051258,97579.0,97578.0,0.002]
[1734798759389,0.051258,97579.0,97578.0,0.001]
[1734798759689,0.06133811,97579.0,97578.0,0.001]
[1734798760589,0.06133811,97579.0,97578.0,0.002]
[1734798760882,0.01008011,97579.0,97573.0,0.3608]
[1734798761091,0.051261,97574.0,97573.0,0.3608]
[1734798761385,0.06134111,97574.0,97573.0,0.3608]
[1734798762185,0.06137704,97574.0,97573.0,0.3608]
[1734798762595,0.06137704,97574.0,97573.0,0.002]
[1734798763281,0.06137704,97574.0,97573.0,0.004]
[1734798764281,0.06137704,97574.0,97568.0,0.15113198]
[1734798764282,0.051263,97569.0,97568.0,0.15113198]
[1734798764585,0.06137904,97569.0,97568.0,0.15113198]
[1734798764989,0.06141403,97569.0,97568.0,0.15113198]
[1734798765387,0.06141403,97569.0,97568.0,0.15413198]
[1734798765690,0.18422113,97569.0,97568.0,0.003]
[1734798765882,0.051269,97558.0,97557.0,0.24349414]
[1734798766083,0.06142003,97558.0,97557.0,0.24349414]
[1734798766393,0.06142003,97558.0,97557.0,0.19419013]
[1734798766601,0.14122003,97558.0,97557.0,0.19419013]
[1734798766983,0.14122003,97558.0,97540.0,0.1535]
[1734798766984,0.051278,97541.0,97540.0,0.1535]
[1734798767183,0.06142903,97541.0,97540.0,0.1535]
[1734798768194,0.07059542,97541.0,97540.0,0.1535]
[1734798768386,0.07159542,97541.0,97540.0,0.1535]
[1734798768885,0.02031742,97541.0,97540.0,0.1535]
[1734798769084,0.0100571,97541.0,97540.0,0.1535]
[1734798769993,0.001,97541.0,97540.0,0.1535]
[1734798770185,0.09204422,97551.0,97546.0,0.051275]
[1734798770381,0.09204422,97551.0,97550.0,0.3608]
[1734798771282,0.051273,97551.0,97550.0,0.3608]
[1734798771482,0.053273,97551.0,97550.0,0.3618]
[1734798771683,0.053273,97551.0,97550.0,0.001]
[1734798773082,0.053273,97551.0,97508.0,0.42647202]
[1734798773083,0.037,97529.0,97508.0,0.42647202]
[1734798773285,0.051298,97503.0,97502.0,0.30059685]
[1734798773479,0.412095,97509.0,97499.0,0.43203996]
[1734798773480,0.41261501,97509.0,97499.0,0.43203996]
[1734798773685,0.412099,97501.0,97499.0,0.1562595]
[1734798774294,9.448e-05,97500.0,97499.0,0.1562595]
[1734798774485,0.01549448,97500.0,97499.0,0.1562595]
[1734798774879,0.051301,97497.0,97496.0,0.00092]
[1734798775078,0.051307,97485.0,97484.0,0.0725]
[1734798776286,0.1428931,97485.0,97484.0,0.0725]
[1734798776489,0.15243269,97485.0,97484.0,0.0725]
[1734798777086,0.15243269,97485.0,97484.0,0.0815]
[1734798777487,0.06084659,97485.0,97484.0,0.0815]
[1734798777989,0.06084659,97485.0,97484.0,0.0875]
[1734798779396,0.06084659,97485.0,97484.0,0.015]
[1734798779593,0.051319,97463.0,97458.0,0.3608]
[1734798781198,0.051321,97460.0,97458.0,0.3608]
[1734798781381,0.051321,97460.0,97458.0,0.3658]
[1734798781789,0.051321,97460.0,97458.0,0.3748]
[1734798782489,8.91e-05,97459.0,97458.0,0.014]
[1734798783396,8.91e-05,97459.0,97458.0,0.013]
[1734798783997,8.91e-05,97459.0,97458.0,0.004]
[1734798784190,0.3618891,97459.0,97458.0,0.013]
[1734798785796,0.37131582,97459.0,97458.0,0.013]
[1734798786284,0.37131582,97459.0,97458.0,0.009]
[1734798786499,0.06183682,97459.0,97458.0,0.013]
[1734798787202,0.06183682,97459.0,97458.0,0.012]
[1734798787589,0.06083682,97459.0,97458.0,0.007]
[1734798787998,0.06083682,97459.0,97458.0,0.004]
[1734798789396,0.00951582,97459.0,97458.0,0.004]
[1734798789607,0.00951582,97459.0,97453.0,0.3608]
[1734798789608,8.91e-05,97459.0,97457.0,0.051322]
[1734798789797,8.91e-05,97459.0,97458.0,0.001]
[1734798790693,0.051322,97458.0,97457.0,0.002]
[1734798790894,0.051322,97458.0,97457.0,0.007]
[1734798792304,0.051322,97458.0,97457.0,0.002]
[1734798792493,0.051324,97453.0,97452.0,0.0001198]
[1734798793393,0.051322,97458.0,97452.0,0.0001198]
[1734798793595,0.051322,97458.0,97452.0,0.0041198]
[1734798793896,0.051322,97458.0,97452.0,0.0554438]
[1734798794092,0.051324,97454.0,97452.0,0.0051198]
[1734798795607,0.051324,97454.0,97452.0,0.0041198]
[1734798795895,0.051324,97454.0,97452.0,0.0051198]
[1734798796096,0.057324,97454.0,97452.0,0.0021198]
[1734798796613,0.053324,97454.0,97452.0,0.0001198]
[1734798796798,0.055324,97454.0,97452.0,0.0001198]
[1734798796992,0.004,97454.0,97438.0,0.0792]
[1734798797195,0.051332,97439.0,97438.0,0.0792]
[1734798797908,0.051333,97437.0,97422.0,0.0786]
[1734798798105,0.051337,97428.0,97427.0,0.0787]
[1734798798310,0.051337,97428.0,97419.0,0.3608]
[1734798798497,0.00010086,97427.0,97419.0,0.3608]
[1734798799509,0.01008351,97427.0,97426.0,0.015]
[1734798800003,0.01108351,97427.0,97426.0,0.015]
[1734798800204,0.00110086,97427.0,97426.0,0.00772027]
[1734798800399,0.00110086,97427.0,97401.0,0.0749]
[1734798800600,0.051349,97406.0,97401.0,0.0749]
[1734798800802,0.412149,97406.0,97386.0,0.3608]
[1734798801001,0.412149,97406.0,97387.0,0.0749]
[1734798801002,0.051352,97401.0,97387.0,0.0749]
[1734798801213,0.06137294,97401.0,97387.0,0.0749]
[1734798801409,0.06149542,97401.0,97387.0,0.0749]
[1734798801706,0.051358,97388.0,97387.0,0.0749]
[1734798802407,0.051358,97388.0,97387.0,0.0839]
[1734798802711,0.06140708,97388.0,97387.0,0.0889]
[1734798803110,0.06240708,97388.0,97387.0,0.0889]
[1734798803503,0.06240708,97388.0,97387.0,0.014]
[1734798804715,0.051371,97366.0,97364.0,0.0716]
[1734798805406,0.01004908,97365.0,97353.0,0.36168]
[1734798805609,0.051375,97356.0,97353.0,0.3608]
[1734798806011,0.01004908,97364.0,97353.0,0.3608]
[1734798806215,7.926e-05,97365.0,97363.0,0.3608]
[1734798807312,0.051371,97364.0,97363.0,0.3608]
[1734798808316,0.051375,97356.0,97355.0,0.00710364]
[1734798808517,0.051375,97356.0,97355.0,0.00010364]
[1734798808821,0.001,97364.0,97363.0,0.005]
[1734798809211,0.01104908,97364.0,97363.0,0.005]
[1734798809516,0.01104908,97364.0,97363.0,0.001]
[1734798809716,0.052375,97356.0,97355.0,0.00710364]
[1734798810118,0.413175,97356.0,97355.0,0.00710364]
[1734798810416,0.413175,97356.0,97332.0,0.0015405]
[1734798810417,0.051387,97334.0,97332.0,0.0015405]
[1734798810719,0.051391,97327.0,97321.0,0.3608]
[1734798811015,0.051392,97325.0,97321.0,0.3608]
[1734798811217,0.051392,97325.0,97319.0,0.0724]
[1734798811218,0.00011584,97324.0,97319.0,0.0724]
[1734798811605,0.00011584,97324.0,97321.0,0.3608]
[1734798811805,0.00011584,97324.0,97321.0,0.3678]
[1734798812215,0.00011584,97324.0,97321.0,0.3688]
[1734798812413,0.05150784,97324.0,97321.0,0.008]
[1734798812720,0.051394,97320.0,97319.0,0.007]
[1734798813711,0.37114843,97320.0,97300.0,2.10088]
[1734798813921,0.051404,97302.0,97300.0,2.1]
[1734798814711,0.051399,97312.0,97300.0,2.1]
[1734798814918,0.051396,97317.0,97305.0,0.7216]
[1734798815114,0.001,97320.0,97316.0,0.3608]
[1734798815115,0.15190742,97320.0,97316.0,0.3608]
[1734798815316,0.0514,97309.0,97306.0,0.0733]
[1734798815515,0.3608,97315.0,97306.0,0.0733]
[1734798815817,0.051401,97307.0,97306.0,0.0733]
[1734798816009,0.3608,97315.0,97306.0,0.0733]
[1734798816522,0.051398,97314.0,97306.0,0.0733]
[1734798817714,0.3608,97315.0,97306.0,0.0733]
[1734798817917,0.051401,97308.0,97306.0,0.0733]
[1734798818125,0.3608,97315.0,97306.0,0.0733]
[1734798818327,0.001,97307.0,97306.0,0.0733]
[1734798818920,0.001,97307.0,97306.0,0.4341]
[1734798819322,0.0096715,97324.0,97306.0,0.4341]
[1734798819521,0.051398,97314.0,97307.0,0.0775]
[1734798820419,0.001,97315.0,97307.0,0.0775]
[1734798820621,0.001,97315.0,97312.0,0.3608]
[1734798820824,0.0610635,97324.0,97312.0,0.3608]
[1734798820825,0.00011584,97324.0,97312.0,0.3608]
[1734798821127,0.00011584,97324.0,97323.0,0.3608]
[1734798821920,0.00984613,97332.0,97323.0,0.3608]
[1734798822122,0.3608,97354.0,97331.0,0.3608]
[1734798822319,0.051388,97333.0,97331.0,0.3608]
[1734798823023,0.00012917,97332.0,97331.0,0.3608]
[1734798824123,0.00312917,97332.0,97331.0,0.412189]
[1734798824627,0.00412917,97332.0,97331.0,0.412189]
[1734798825027,0.00312917,97332.0,97331.0,0.413189]
[1734798825525,0.00312917,97332.0,97331.0,0.412189]
[1734798825719,0.00412917,97332.0,97331.0,0.415189]
[1734798826521,0.00112917,97332.0,97331.0,0.415189]
[1734798826722,0.01031148,97363.0,97355.0,0.051376]
[1734798826923,0.02569519,97376.0,97362.0,0.3608]
[1734798827220,0.152,97395.0,97356.0,0.0734]
[1734798827221,0.09127579,97372.0,97356.0,0.0734]
[1734798827426,0.051372,97363.0,97356.0,0.0734]
[1734798827630,0.051368,97371.0,97362.0,0.3608]
[1734798827831,0.051367,97371.0,97370.0,0.3608]
[1734798828021,0.05149462,97371.0,97370.0,0.3608]
[1734798828730,0.06174981,97371.0,97370.0,0.3608]
[1734798828928,0.01938281,97371.0,97370.0,0.3608]
[1734798829130,0.00912762,97371.0,97370.0,0.3608]
[1734798829526,0.019338,97371.0,97370.0,0.3608]
[1734798830326,0.028338,97371.0,97370.0,0.3608]
[1734798831729,0.12170106,97384.0,97370.0,0.3608]
[1734798831730,0.12170106,97384.0,97383.0,0.051361]
[1734798831927,0.12170106,97384.0,97383.0,0.412161]
[1734798832925,0.13070106,97384.0,97383.0,0.413161]
[1734798833330,0.009,97384.0,97383.0,0.413161]
[1734798833529,0.011,97384.0,97383.0,0.413161]
[1734798833726,0.002,97384.0,97383.0,0.412161]
[1734798834031,0.00941693,97393.0,97383.0,0.3628]
[1734798834231,0.051353,97399.0,97392.0,0.3608]
[1734798834939,0.051354,97397.0,97392.0,0.3608]
[1734798835325,0.051356,97394.0,97392.0,0.3608]
[1734798836024,0.051356,97394.0,97392.0,0.3618]
[1734798836629,0.051356,97394.0,97392.0,0.3628]
[1734798836831,0.055356,97394.0,97392.0,0.3618]
[1734798837334,0.061356,97394.0,97392.0,0.3618]
[1734798838837,0.01,97394.0,97392.0,0.413156]
[1734798839038,0.01,97394.0,97393.0,0.0749]
[1734798839536,0.006,97394.0,97393.0,0.0749]
[1734798839731,0.01,97394.0,97393.0,0.0749]
[1734798840142,0.004,97394.0,97393.0,0.0749]
[1734798840439,0.008,97394.0,97393.0,0.0749]
[1734798840833,0.006,97394.0,97393.0,0.0749]
[1734798841034,0.057355,97394.0,97393.0,0.0749]
[1734798841240,0.057355,97394.0,97392.0,0.3608]
[1734798841441,0.051366,97374.0,97373.0,0.3608]
[1734798841642,0.051366,97374.0,97369.0,0.0739]
[1734798841834,0.051366,97374.0,97370.0,0.3608]
[1734798842249,0.3608,97384.0,97370.0,0.3608]
[1734798842450,0.051365,97376.0,97370.0,0.3608]
[1734798842937,0.052366,97374.0,97373.0,0.006]
[1734798843541,0.051367,97371.0,97370.0,0.3658]
[1734798843733,0.001,97376.0,97370.0,0.3668]
[1734798843934,0.001,97376.0,97374.0,0.051366]
[1734798844544,0.00986437,97384.0,97373.0,0.005]
[1734798844737,0.051363,97380.0,97373.0,0.005]
[1734798845037,0.051358,97389.0,97379.0,0.3608]
[1734798845245,0.15190742,97390.0,97373.0,0.005]
[1734798845246,0.051366,97374.0,97373.0,0.005]
[1734798846046,0.051366,97374.0,97373.0,0.004]
[1734798846547,0.051375,97356.0,97355.0,0.3608]
[1734798847339,0.3608,97378.0,97355.0,0.3608]
[1734798847541,0.00011649,97377.0,97355.0,0.3608]
[1734798847736,0.051373,97362.0,97355.0,0.3648]
[1734798847931,0.001,97356.0,97355.0,0.3738]
[1734798848532,0.001,97356.0,97355.0,0.013]
[1734798849240,0.001,97356.0,97355.0,0.009]
[1734798849445,0.051375,97357.0,97355.0,0.013]
[1734798850036,0.001,97356.0,97355.0,0.009]
[1734798850341,0.001,97356.0,97355.0,0.064376]
[1734798850542,0.051371,97364.0,97355.0,0.055376]
[1734798850732,0.001,97357.0,97355.0,0.064376]
[1734798851135,0.051372,97363.0,97355.0,0.055376]
[1734798851334,0.001,97356.0,97355.0,0.013]
[1734798852741,0.001,97357.0,97355.0,0.013]
[1734798852939,0.001,97357.0,97355.0,0.060375]
[1734798853139,0.001,97357.0,97355.0,0.064375]
[1734798853331,0.001,97356.0,97355.0,0.064375]
[1734798853737,0.001,97356.0,97355.0,0.013]
[1734798854042,0.052375,97357.0,97355.0,0.013]
[1734798854250,0.01013063,97356.0,97355.0,0.013]
[1734798854644,0.052375,97357.0,97355.0,0.013]
[1734798854833,0.01013063,97356.0,97355.0,0.013]
[1734798855238,0.23963063,97356.0,97355.0,0.013]
[1734798855442,0.23963063,97356.0,97355.0,0.004]
[1734798855742,0.24063063,97356.0,97355.0,0.013]
[1734798856347,0.051385,97338.0,97337.0,0.3608]
[1734798857134,0.06160985,97338.0,97337.0,0.3608]
[1734798857338,0.051389,97330.0,97324.0,0.3608]
[1734798857752,0.06161385,97330.0,97324.0,0.3608]
[1734798858042,0.06161385,97330.0,97317.0,0.3608]
[1734798858635,0.051389,97330.0,97317.0,0.3608]
[1734798859445,0.055389,97330.0,97317.0,0.3608]
[1734798859746,0.058389,97330.0,97317.0,0.3608]
[1734798860144,0.07028008,97330.0,97317.0,0.412196]
[1734798860345,0.06728008,97330.0,97317.0,0.412196]
[1734798860552,0.01,97330.0,97317.0,0.3608]
[1734798860752,0.01,97330.0,97328.0,0.41219]
[1734798861055,0.01,97330.0,97328.0,0.41311]
[1734798861243,0.01,97330.0,97329.0,0.07238558]
[1734798861553,0.12175528,97338.0,97337.0,0.051385]
[1734798861739,0.051379,97350.0,97337.0,0.412185]
[1734798861941,0.051379,97350.0,97348.0,0.3608]
[1734798862170,0.12175528,97351.0,97348.0,0.412179]
[1734798862653,0.12175528,97351.0,97349.0,0.051379]
[1734798862850,0.009,97350.0,97349.0,0.051379]
[1734798863354,0.12175528,97351.0,97348.0,0.3608]
[1734798863355,0.018,97351.0,97348.0,0.3608]
[1734798863539,0.051379,97350.0,97348.0,0.3608]
[1734798863944,0.060379,97350.0,97348.0,0.3608]
[1734798864165,0.068379,97350.0,97348.0,0.3608]
[1734798865346,0.059379,97350.0,97348.0,0.3608]
[1734798865548,0.059379,97350.0,97348.0,0.3618]
[1734798865747,0.059379,97350.0,97348.0,0.3628]
[1734798865951,0.068379,97350.0,97348.0,0.3628]
[1734798866457,0.016,97350.0,97348.0,0.3628]
[1734798867953,0.051379,97349.0,97348.0,0.3628]
[1734798868552,0.051379,97349.0,97348.0,0.002]
[1734798869052,0.009,97349.0,97348.0,0.001]
[1734798869354,0.067379,97349.0,97348.0,0.002]
[1734798869555,0.07767924,97349.0,97348.0,0.002]